{"text_format":"2","workbook":"xlsx","n_sheets":1,"sheets":["Sheet1"],"not_rendered":{"charts":0,"images":3,"macros":0,"external_links":0,"defined_names":0,"comments":0,"pivot_tables":0},"unopened":[],"bounds":{"document_bytes":16777216,"sheet_cells":100000,"run_cost":"one","rows_first":2000,"rows_last":500,"rows_between":2000,"halvings":0,"cell_chars":16384,"cell_head_chars":4096},"cells_cut":0,"cells_raw":0,"read":"whole","date_system":"1900"}

{"sheet":"Sheet1","index":0,"n_rows":68,"n_cols":18,"rows_kept":68,"cut":false,"hidden":false,"merged":[]}
["OSD Fonts Comparisson Chart"]
[]
["INDEX","HEX","BetaFlight 1","BetaFlight 2","DJI","MATCH WITH BF1","MATCH WITH BF2","BOTH MATCH DJI",null,"BetaFlight 1",null,null,null,"BetaFlight 2",null,null,null,"DJI"]
[0.0,{"$f":"IF(ISNUMBER(A4),\"0x\"&DEC2HEX(A4),\n(\"0x\"&DEC2HEX(LEFT(A4,FIND(\"-\",A4)-1)))&\"-\"&(\"0x\"&DEC2HEX(RIGHT(A4,LEN(A4)-FIND(\"-\",A4)))))","v":"0x0"},"Clear","Clear","Clear",{"$f":"C4=E4","v":true},{"$f":"D4=E4","v":true},{"$f":"IF(AND(F4=TRUE,G4=TRUE),TRUE,FALSE)","v":true}]
[1.0,"0x1","Signal","Signal","Signal",true,true,true]
[2.0,"0x2","Diamond L","Diamond L","Diamond L",true,true,true]
[3.0,"0x3","Diamond R","Diamond R","Diamond R",true,true,true]
[4.0,"0x4","Up","Home","Up",true,false,false]
[5.0,"0x5","Volts","Volts","Volts",true,true,true]
[6.0,"0x6","mAh","mAh","mAh",true,true,true]
[7.0,"0x7","star up","star up","star up",true,true,true]
[8.0,"0x8","star mid","star mid","star mid",true,true,true]
[9.0,"0x9","star down","star down","star down",true,true,true]
[10.0,"0xA","cross","cross","blank",false,false,false]
[11.0,"0xB","m","m","m",true,true,true]
[12.0,"0xC","f","f","f",true,true,true]
[13.0,"0xD","c","c","c",true,true,true]
[14.0,"0xE","ft","ft","ft",true,true,true]
[15.0,"0xF","Blackbox","Blackbox","Blackbox",true,true,true]
[16.0,"0x10","Home pin","Home pin","Home pin",true,true,true]
[17.0,"0x11","RPM","RPM","RPM",true,true,true]
[18.0,"0x12","Verticle scale","Verticle scale","Verticle scale",true,true,true]
[19.0,"0x13","Roll","Roll","Roll",true,true,true]
[20.0,"0x14","Pitch","Pitch","Pitch",true,true,true]
[21.0,"0x15","Verticle line","Verticle line","Verticle line",true,true,true]
[22.0,"0x16","Horizontal line","Horizontal line","Horizontal line",true,true,true]
[23.0,"0x17","N","N","N",true,true,true]
[24.0,"0x18","S","S","S",true,true,true]
[25.0,"0x19","W","W","W",true,true,true]
[26.0,"0x1A","E","E","E",true,true,true]
[27.0,"0x1B","Compass course","Compass course","Compass course",true,true,true]
[28.0,"0x1C","Compass fine","Compass fine","Compass fine",true,true,true]
[29.0,"0x1D","Sat L","Sat L","Sat L",true,true,true]
[30.0,"0x1E","Sat R","Sat R","Sat R",true,true,true]
[31.0,"0x1F","blank","blank","blank",true,true,true]
[32.0,"0x20","!","!","!",true,true,true]
[33.0,"0x21","\"","\"","\"",true,true,true]
[34.0,"0x22","#","#","#",true,true,true]
[35.0,"0x23","MAX","MAX","MAX",true,true,true]
[36.0,"0x24","%","%","%",true,true,true]
[37.0,"0x25","Dash right","&","Dash right",true,false,false]
[38.0,"0x26","Dash Left","","Dash Left",true,false,false]
["39-95","0x27-0x5F","ASCII","ASCII","ACSII",false,false,false]
["96-111","0x60-0x6F","Arrows","Arrows","Arrows",true,true,true]
[112.0,"0x70","On Hr","Rev counter","On Hr",true,false,false]
[113.0,"0x71","Fly Hr","Rotate","Fly Hr",true,false,false]
["114-116","0x72-0x74","right angle arrows","Crosshair","Crosshair large",false,false,false]
["117-120","0x75-0x78","U D L R arrows","U D L R arrows","U D L R arrows",true,true,true]
[121.0,"0x79","right angle arrow","blank","right angle arrow",true,false,false]
[122.0,"0x7A","thermometer","thermometer","thermometer",true,true,true]
[123.0,"0x7B","blank","LQ","blank",true,false,false]
[124.0,"0x7C","vertical divider","vertical divider","vertical divider",true,true,true]
[125.0,"0x7D","blank","Km","blank",true,false,false]
[126.0,"0x7E","crosshair","Miles","crosshair",true,false,false]
[127.0,"0x7F","Altitude","Altitude","Altitude",true,true,true]
["128-136","0x80-0x88","AHI","AHI","AHI",true,true,true]
[137.0,"0x89","Lat","Lat","Lat",true,true,true]
["138-143","0x8A-0x8F","progress bar","progress bar","progress bar",true,true,true]
["144-151","0x90-0x97","Battery","Battery","Battery",true,true,true]
[152.0,"0x98","Lon","Lon","Lon",true,true,true]
[153.0,"0x99","Ft/s","Ft/s","Ft/s",true,true,true]
[154.0,"0x9A","A","A","A",true,true,true]
[155.0,"0x9B","On Min","On Min","On Min",true,true,true]
[156.0,"0x9C","Fly Min","Fly Min","Fly Min",true,true,true]
[157.0,"0x9D","Mph","Mph","Mph",true,true,true]
[158.0,"0x9E","Km/h","Km/h","Km/h",true,true,true]
[159.0,"0x9F","M/s","M/s","M/s",true,true,true]
["160-254","0xA0-0xFE","BF Logo","BF Logo","blank",false,false,false]